Cogmind - Beta 16.1 @@@ ROGUE MODE // 2026.06.22 @ 22:49:25 Player: Lolterzard Result: Destroyed by 6T-IU5(R) with Subdweller Beam Cannon Performance ------------- Evolutions (0) 0 Regions Visited (3) 600 Robots Destroyed (19) 95 Value Destroyed (426) 426 Prototype IDs (0) 0 Alien Tech Used (0) 0 Bonus (0) 0 TOTAL SCORE: 1121 Bonus ------- None Cogmind --------- Core Integrity 0/250 Matter 194/300 Energy 250/250 System Corruption 0% Temperature Cool (9) Movement Treading (160) Location -10/Subcaves Parts ------- > --- POWER (1) -------- Ion Engine > --- PROPULSION (2) --- Light Treads > --- UTILITY (2) ------ Small Storage Unit > --- WEAPON (2) ------- Rocket Launcher > --- INVENTORY (8) ---- Ion Engine Wheel Compact Wheel Light Assault Rifle Light Assault Rifle Light Assault Rifle Grenade Launcher Grenade Launcher Peak State ------------ > --- POWER ------------ Light Ion Engine > --- PROPULSION ------- Light Treads Light Treads > --- UTILITY ---------- Small Storage Unit Seismic Detector > --- WEAPON ----------- Light Assault Rifle Light Assault Rifle > --- INVENTORY -------- Light Ion Engine Wheel Wheel Wheel Wheel Compact Wheel Tractor Beam Medium Laser [Rating: 7] Favorites ----------- Power Ion Engine Engine Ion Engine Propulsion Light Treads Treads Light Treads Utility Small Storage Unit Device Seismic Detector Storage Small Storage Unit Weapon Light Assault Rifle Ballistic Gun Light Assault Rifle Launcher Rocket Launcher Build | -11 -10 -10 -10 ------- Run | Yrd Mat Min Sub Slots Evolved . | . . . . Power . | . . . . Propulsion . | . . . . Utility . | . . . . Weapon . | . . . . Parts Attached 13 | 7 4 . 2 Power 3 | 1 2 . . Engine 3 | 1 2 . . Core . | . . . . Reactor . | . . . . Propulsion 2 | 2 . . . Treads 2 | 2 . . . Leg . | . . . . Wheel . | . . . . Hover . | . . . . Flight . | . . . . Utility 2 | 2 . . . Device 1 | 1 . . . Storage 1 | 1 . . . Processor . | . . . . Hackware . | . . . . Protection . | . . . . Artifact . | . . . . Weapon 6 | 2 2 . 2 Energy Gun . | . . . . Energy Cannon . | . . . . Ballistic Gun 4 | 2 2 . . Ballistic Cannon . | . . . . Launcher 2 | . . . 2 Special Weapon . | . . . . Impact Weapon . | . . . . Slashing Weapon . | . . . . Piercing Weapon . | . . . . Special Melee Weapon . | . . . . Unidentified Prototypes . | . . . . Parts Lost 3 | . . . 3 Power . | . . . . Propulsion 1 | . . . 1 Utility 1 | . . . 1 Weapon 1 | . . . 1 Highest Loss Streak 2 | . . . 2 To Critical Strikes . | . . . . Average Backups 7 | 4 7 8 8 Power . | . 1 1 1 Propulsion 2 | 2 3 2 2 Utility . | . . . . Weapon 3 | . 3 4 5 Tool/Special . | . . . . Unused Backups 13 | . 6 1 6 Power 2 | . 1 . 1 Propulsion 5 | . 2 1 2 Utility 2 | . 2 . . Weapon 4 | . 1 . 3 Tool/Special . | . . . . Average Slot Usage (%) 94 | . 99 100 80 Engine 13 | . 13 14 14 Treads 25 | . 28 28 20 Device 11 | . 14 14 6 Storage 14 | . 14 14 14 Ballistic Gun 24 | . 28 28 16 Launcher 2 | . . . 7 Peak Build Rating 7 | 7 7 7 7 Average Rating 6 | 5 6 7 6 On Entrance 5 | . 7 7 7 Avg Prop Armor Cover (%) 27 | 27 . . . Naked Turns . | . . . . Heaviest Build 17 | 11 13 13 17 Greatest Support 40 | 40 40 40 40 Greatest Overweight (x) 3 | 3 . . . Average Overweight (x) . | . . . . Largest Inventory Capacity 8 | 8 8 8 8 Average Capacity 7 | 7 8 8 8 Most Carried 8 | 8 8 8 8 Average Carried 7 | 5 7 8 8 Final Capacity 8 | 8 8 8 8 Final Carried 8 | 8 8 8 8 Class Distribution -------------------- 100% | Mutant Dominant Class ---------------- Mutant | -10/Materials Mutant | -10/Mines Mutant | -10/Subcaves Resources | -11 -10 -10 -10 ----------- Run | Yrd Mat Min Sub Matter Collected 444 | 261 95 . 88 Remotely . | . . . . Salvage Created 591 | 122 363 . 106 Parts 53 | 13 35 . 5 Haulers Intercepted 1 | . 1 . . Recyclers Shooed 2 | . 2 . . Parts Field Recycled . | . . . . Retrieved Matter . | . . . . Parts Self-Destructed 10 | . . . 10 Prevented . | . . . . Parts Restored . | . . . . Kills | -11 -10 -10 -10 ------- Run | Yrd Mat Min Sub Combat Hostiles Destroyed 15 | . 11 . 4 Guns 13 | . 11 . 2 AOE 2 | . . . 2 Classes Destroyed 6 | 2 3 . 1 Tunneler 2 | 2 . . . Hauler 1 | . 1 . . Recycler 1 | 1 . . . Swarmer 6 | . 6 . . Grunt 7 | . 5 . 2 Subdweller 2 | . . . 2 Best Kill Streak 3 | 2 3 . 2 Combat Bots Only 3 | . 3 . 2 Max Kills in Single Turn 1 | 1 1 . 1 Gunslinging . | . . . . Exploded 1 | . . . 1 Melee . | . . . . Uniques/NPCs Destroyed . | . . . . Combat | -11 -10 -10 -10 -------- Run | Yrd Mat Min Sub Hostile Shots Fired 91 | . 59 . 32 Missed 26 | . 17 . 9 Hits 65 | . 42 . 23 Projectile 65 | . 42 . 23 AOE 1 | . . . 1 Critical Strikes 1 | . . . 1 Damage Taken 921 | . 468 . 453 Core 268 | . 129 . 139 Absorbed by Shields . | . . . . Core Remaining (%) 100 | 100 . . . Volleys Fired 67 | 5 44 . 18 Largest 2 | 2 2 . 2 Hottest 63 | 40 40 . 63 Shots Fired 131 | 10 88 . 33 Gun 120 | 10 88 . 22 Cannon . | . . . . Launcher 11 | . . . 11 Special . | . . . . Kinetic 120 | 10 88 . 22 Thermal . | . . . . Explosive 11 | . . . 11 Electromagnetic . | . . . . Robot Hit Streak 8 | 8 8 . 8 Robot Miss Streak 6 | 1 6 . 4 Penetration Max . | . . . . Secondary Targets 3 | . 2 . 1 Max Gunslinging Chain 1 | . 1 . 1 Shots Hit Robots 84 | 8 54 . 22 Core Hits 44 | 4 29 . 11 Critical Kills 1 | . 1 . . Critical Parts Destroyed . | . . . . Critical Strikes 1 | . 1 . . Destroy 1 | . 1 . . Melee Attacks . | . . . . Impact . | . . . . Slashing . | . . . . Piercing . | . . . . Sneak Attacks . | . . . . Combat Hostiles . | . . . . Follow-up Attacks . | . . . . Damage Inflicted 1263 | 71 449 . 743 Guns 642 | 71 445 . 126 Cannons . | . . . . Explosions 617 | . . . 617 Melee . | . . . . Ramming 4 | . 4 . . Kinetic 642 | 71 445 . 126 Thermal . | . . . . Explosive 617 | . . . 617 Electromagnetic . | . . . . Impact . | . . . . Slashing . | . . . . Piercing . | . . . . Highest Corruption . | . . . . Average Corruption . | . . . . Corruption Purged . | . . . . Corruption Blocked . | . . . . Overload Shots . | . . . . Overflow Damage . | . . . . Projectiles . | . . . . Explosions . | . . . . Melee . | . . . . Knockbacks . | . . . . Impact . | . . . . Kinetic . | . . . . Secondary . | . . . . Self-Inflicted Damage 21 | . . . 21 Shots 1 | . . . 1 Rammed 1 | . 1 . . Targets Rammed 1 | . 1 . . Kicked . | . . . . Crushed . | . . . . Highest Temperature 25 | . 25 . . Average Temperature 8 | . 8 . . Received Heat Transfer 306 | . 156 . 150 Siege Activations . | . . . . Martial Activations . | . . . . Shielding Activations . | . . . . Robots Disrupted . | . . . . Combat Hostiles . | . . . . Robots Corrupted . | . . . . Combat Hostiles . | . . . . Parts Fried . | . . . . Impact Corruptions . | . . . . Robots Melted . | . . . . Combat Hostiles . | . . . . Parts Melted . | . . . . Heat Transferred . | . . . . Parts Sabotaged . | . . . . Parts Stolen . | . . . . Parts Stripped . | . . . . Power Chain Reactions . | . . . . Alert | -11 -10 -10 -10 ------- Run | Yrd Mat Min Sub Maximum Alert Level . | . . . . Low Security (%) 100 | 100 100 100 . Level 1 . | . . . . Level 2 . | . . . . Level 3 . | . . . . Level 4 . | . . . . Level 5 . | . . . . High Security . | . . . . Max Security . | . . . . Peak Influence 115 | 5 115 25 . Initial 25 | . . 25 . Average 36 | . 47 8 . Influence Increases 355 | 15 290 . 50 Destroy 0b10 Robot/C 260 | . 220 . 40 Destroy 0b10 Robot/NC 20 | 15 5 . . Destroy Leader 52 | . 42 . 10 Successful Hack 8 | . 8 . . Lose Combat Pursuer 15 | . 15 . . Influence Decreases 355 | 15 223 67 50 Entered New Map 42 | . . 42 . Time Decay 303 | 15 223 25 40 Lost Part 10 | . . . 10 Squads Dispatched 2 | . 2 . . Investigation 1 | . 1 . . Extermination . | . . . . Reinforcement 1 | . 1 . . Assault . | . . . . Garrison . | . . . . Intercept . | . . . . Searches Triggered . | . . . . Construction Impeded . | . . . . Haulers Reinforced . | . . . . Active Scanning Responses . | . . . . Cargo Convoy Interrupts . | . . . . Stealth | -11 -10 -10 -10 --------- Run | Yrd Mat Min Sub Distress Signals 3 | . 3 . . Communications Jammed . | . . . . Distress Signals . | . . . . Times Spotted 25 | . 19 . 6 Peak Tracking Total 5 | . 5 . 2 Tactical Retreats 1 | . 1 . . Traps | -11 -10 -10 -10 ------- Run | Yrd Mat Min Sub Traps Triggered 1 | . 1 . . Indirectly . | . . . . Trap Hack Attempts . | . . . . Triggered . | . . . . Disarmed . | . . . . Reprogrammed . | . . . . Reused . | . . . . Traps Extracted . | . . . . Installed . | . . . . Triggered . | . . . . Machines | -11 -10 -10 -10 ---------- Run | Yrd Mat Min Sub Machines Disabled . | . . . . Max in Single Turn . | . . . . Machines Repaired . | . . . . Machines Dismantled . | . . . . Machines Sabotaged . | . . . . Overloaded Fab Kills . | . . . . Hacking | -11 -10 -10 -10 --------- Run | Yrd Mat Min Sub Machines Accessed 3 | . 3 . . Terminals 3 | . 3 . . Fabricators . | . . . . Repair Stations . | . . . . Recycling Units . | . . . . Scanalyzers . | . . . . Garrison Access . | . . . . Total Hacks 4 | . 4 . . Successful 2 | . 2 . . Failed 2 | . 2 . . Catastrophic 1 | . 1 . . Database Lockouts . | . . . . Manual . | . . . . Terminals 4 | . 4 . . Fabricators . | . . . . Repair Stations . | . . . . Recycling Units . | . . . . Scanalyzers . | . . . . Garrison Access . | . . . . Terminal Hacks 2 | . 2 . . Level Access Points 1 | . 1 . . Registered Components 1 | . 1 . . Fabricator Hacks . | . . . . Repair Station Hacks . | . . . . Recycling Unit Hacks . | . . . . Scanalyzer . | . . . . Garrison Access Hacks . | . . . . Unauthorized Hacks . | . . . . Terminals . | . . . . Fabricators . | . . . . Repair Stations . | . . . . Recycling Units . | . . . . Scanalyzers . | . . . . Garrison Access . | . . . . Data Cores Recovered . | . . . . Used . | . . . . Hacking Detections 1 | . 1 . . Full Trace Events 1 | . 1 . . Feedback Events . | . . . . Feedback Blocked . | . . . . Robot Schematics Acquired . | . . . . Robots Built . | . . . . Authchips . | . . . . Time . | . . . . Total Robot Build Rating . | . . . . Part Schematics Acquired . | . . . . Parts Built . | . . . . Authchips . | . . . . Time . | . . . . Total Part Build Rating . | . . . . Part Studies Acquired . | . . . . Parts Repaired . | . . . . Time . | . . . . Parts Recycled . | . . . . Recycled Matter . | . . . . Retrieved Matter . | . . . . Retrieved Components . | . . . . Parts Scanalyzed . | . . . . Part Schematics Acquired . | . . . . Parts Damaged . | . . . . Bothacking | -11 -10 -10 -10 ------------ Run | Yrd Mat Min Sub Used RIF Installer . | . . . . Robots Hacked . | . . . . Non-combat . | . . . . Combat . | . . . . Robot Hacks Applied . | . . . . Relay Couplers Released . | . . . . Fabnet Peak Effective % . | . . . . Robots Rewired . | . . . . Allies Hacked . | . . . . Hacks Repelled . | . . . . Allies | -11 -10 -10 -10 -------- Run | Yrd Mat Min Sub Total Allies . | . . . . Largest Group . | . . . . Highest-Rated Group . | . . . . Highest-Rated Ally . | . . . . Total Orders . | . . . . Ally Attacks . | . . . . Total Damage . | . . . . Kills . | . . . . Allies Corrupted . | . . . . Allies Melted . | . . . . Intel | -11 -10 -10 -10 ------- Run | Yrd Mat Min Sub Active Infowar (turns) 891 | 13 636 98 144 Seismic 891 | 13 636 98 144 Robot Analysis Total . | . . . . Derelict Logs Recovered . | . . . . Drone Launches . | . . . . Drone Recoveries . | . . . . Exploration | -11 -10 -10 -10 ------------- Run | Yrd Mat Min Sub Turns Passed 1158 | 115 636 98 309 Spaces Moved 593 | 57 315 61 160 Core 18 | 18 . . . Treads 575 | 39 315 61 160 Legs . | . . . . Wheels . | . . . . Hover . | . . . . Flight . | . . . . Fastest Speed 50 | 50 160 160 160 Average Speed 158 | 148 160 160 160 Slowest Speed 200 | 200 160 160 160 Overloaded Moves . | . . . . Propulsion Burnouts . | . . . . Robots Hopped . | . . . . Potential Cave-ins . | . . . . Cave-ins Triggered . | . . . . Exploration Rate (%) 25 | 5 69 11 16 Regions Visited 3 Branch Regions 2 Pre-discovered Areas . | . . . . Known Exits Taken . | . . . . Unknown Exits Taken 3 | 1 1 1 . Scrap Searched . | . . . . Spaces Dug 12 | . . . 12 Terrain Destroyed 75 | . . . 75 Melee . | . . . . Projectile . | . . . . AOE 75 | . . . 75 Terrain Rammed . | . . . . Walls Destroyed . | . . . . Machines Disabled . | . . . . Actions | -11 -10 -10 -10 --------- Run | Yrd Mat Min Sub Total 701 | 76 380 62 183 Wait 4 | . 1 . 3 Move 590 | 56 314 60 160 Hop . | . . . . Pick Up 15 | 8 6 1 . Fast Attach 9 | 7 2 . . Attach . | . . . . Detach . | . . . . Swap 4 | . 2 . 2 Drop 11 | . 10 1 . Fire 67 | 5 44 . 18 Melee . | . . . . Ram . | . . . . Kick . | . . . . Crush 1 | . 1 . . Escape Stasis . | . . . . Rewire . | . . . . Trap . | . . . . Miscellaneous . | . . . . Route ------- -11/Scrapyard -10/Materials (discovered 4 exits: *Mat x3 / [*Min]) -10/Mines -10/Subcaves History --------- Turn | Location | Event 20 | -11/Scrapyard | Discovered new exit (range 16) 116 | -11/Scrapyard | Entered Materials 300 | -10/Materials | Build established: Mutant 480 | -10/Materials | Discovered new exit (range 13) 616 | -10/Materials | Derelicts attacked the area 619 | -10/Materials | Identified exit to Materials 638 | -10/Materials | Core integrity fell below 50% 723 | -10/Materials | Discovered new exit (range 11) 752 | -10/Materials | Entered Mines 759 | -10/Mines | Received a Rocket Launcher from a helpful Derelict 815 | -10/Mines | Discovered new exit (range 6) 850 | -10/Mines | Entered Subcaves 999 | -10/Subcaves | Core integrity fell below 20% 1159 | -10/Subcaves | Destroyed by 6T-IU5(R) with Subdweller Beam Cannon Last Messages --------------- 00995_ Subatomizers dissect the Heat Sink. 00998_ Aluminum Leg fries itself beyond repair. 01001_ G-47 Trooper destroyed. 01006_ Heat Sink fries itself beyond repair. 01006_ Particle Gun fries itself beyond repair. 01007_ Acquired 47 matter. 01009_ Subatomizers dissect the Imp. Heat Sink. 01010_ Acquired 15 matter. 01012_ Imp. Heat Sink fries itself beyond repair. 01016_ Aluminum Leg fries itself beyond repair. 01032_ The unstable cave ceiling collapses. 01040_ AS-83E(R) destroyed. 01041_ The unstable cave ceiling collapses. 01065_ Grenade Launcher destroyed. 01065_ J2-2Z7(R) destroyed. 01075_ The unstable cave ceiling collapses. 01085_ Acquired 26 matter. 01094_ P8-2AP(z): "She is not going to be happy we haven't found any suitable candidates yet." 01113_ DP-LNI(O) collects matter. Map ----- +----------------------------------------------------+ | ?????????????????????????????????????????????????? | | ?????????????????????????????????????????????????? | | ?????????????????????????????????????????????????? | | ?????????????????????????????????????????????????? | | ?????????????????????????????????????????????????? | | ?????????????????????????????????????????????????? | | ?????????????????????????????????????????????????? | | ?????????????????????????????????????????????????? | | ?????????????????????????????????????????????????? | | ?????????????????????????????????????????????????? | | ?????????????????????????????? ??????????????????? | | ????????????????????????????? ??????????????????? | | ????????????????????????????? ??????????????????? | | ??????????????????????????### ??????????????????? | | ?????????????????????????? ???????????????????? | | ?????????????????????????? ???????????????????? | | ?????????????????????????# ##??????????????????? | | ????????????????????????# #??????????????????? | | ???????????????????????? #??????????????????? | | ????????????????????????# #??????????????????? | | ???????????????????????? #??????????????????? | | ???????????????????????## R #??????????????????? | | ??????????????????????## R ##?????????????????? | | ??????????????????????# #?????????????????? | | ???????????????????????# #??????????????????? | | ???????????????????????##@ ##??????????????????? | | ??????????????????????## O ##?????????????????? | | ??????????????????????# #?????????????????? | | ??????????????????????## ## #?????????????????? | | ???????????????????????## ### ##????????????????? | | ????????????????????????# ## #????????????????? | | ???????????????????????## ## ###??????????????? | | ???????????????????????# # ???????????????? | | ??????????????????????### ## #??????????????????? | | ?????????????????????## #??????????????????? | | ?????????????????# #??????????????????? | | ?????????????????## ### ##?????????????????? | | ??????????????????###### ??## #?????????????????? | | ???????????????????????##???## ##### #???????????? | | ???????????????????????????### #???????????? | | ???????????????????????????# # #####???????????? | | ???????????????????????????# #??????????????? | | ???????????????????????????## #????? ?#??????? | | ?????????????????????????#### ##??? #??????? | | ????????????????????????## ] ### #???????? | | ????????????????????????# #???????? | | ????????????????????????# ##???????? | | ????????????????????????#### #????????? | | ??????????????????????????## ### ###????????? | | ?????????????????????????## ##??###??????????? | +----------------------------------------------------+ Best States ------------- Heat Dissipation 25 Energy Generation 10 Energy Capacity 250 Matter Stores 300 Matter Capacity 300 Sight Range 16 Terrain Scan Density 10 Evasion (%) 40 Recoil Reduction 2 Item Schematics ----------------- None Robot Schematics ------------------ None Fabricated ------------ Nothing Repaired ---------- Nothing Studied --------- None Alien Tech Used ----------------- None Achievements -------------- None Challenges ------------ None Game ------ Seed EncryptedHardenedFragment Manual? 0 Play Time 00:06:59 Cumulative 45.8 hours Start 2026.06.22 @ 22:43:41 End 2026.06.22 @ 22:49:25 Sessions 1 Manual Loads 0 Difficulty Rogue Special Mode None Game No. 92 Rogue 92 Adventurer 0 Explorer 0 Win Type - Total 0 Types 0/0/0/0/0/0/0/0/0/0 Lore% 23 Gallery% 24 Achievement% 21 Wizard Run 0 Options --------- Layout 0 ASCII 0 Keyboard 0 Movement Mouse Keybinds 0 Fullscreen 2 Font 24/Smallcaps Map View 76x50 Zoom Use 0% Tactical HUD 1 Map Filters NONE Filters NONE Steam 1 RUN: b3196a54-44c2-47fd-9f97-aefc0087380f